Cogmind - Beta 16 @@@ ROGUE MODE // 2025.11.02 @ 16:33:27 Player: Not_Jesus8 Result: Self-destructed Performance ------------- Evolutions (3) 1500 Regions Visited (7) 1400 Robots Destroyed (43) 215 Value Destroyed (828) 828 Prototype IDs (23) 460 Alien Tech Used (0) 0 Bonus (300) 300 TOTAL SCORE: 4703 Bonus ------- Aligned with FarCom 300 Cogmind --------- Core Integrity 664/700 Matter 300/300 Energy 100/100 System Corruption 0% Temperature Cool (1) Movement Flying (50) Location -7/Factory Parts ------- > --- POWER (1) -------- (None) > --- PROPULSION (4) --- Flying Fortress v7 > --- UTILITY (4) ------ Medium Storage Unit Melee Analysis Suite Melee Analysis Suite Light Armor Plating > --- WEAPON (4) ------- Hammer Hammer Hammer Maul > --- INVENTORY (10) --- Advanced Visual Processing Unit Propulsion Shielding Propulsion Shielding Improved Weapon Shielding Light Armor Plating Hacking Suite Hacking Suite System Shield System Shield System Shield Peak State ------------ > --- POWER ------------ (None) > --- PROPULSION ------- Flying Fortress v7 > --- UTILITY ---------- Medium Storage Unit Melee Analysis Suite Melee Analysis Suite Light Armor Plating > --- WEAPON ----------- Hammer Hammer Hammer Maul > --- INVENTORY -------- Advanced Visual Processing Unit Propulsion Shielding Propulsion Shielding Improved Weapon Shielding Light Armor Plating Hacking Suite System Shield System Shield System Shield [Rating: 47] Favorites ----------- Power Ion Engine Engine Ion Engine Propulsion Light Treads Treads Light Treads Wheel Wheel Flight Unit Flying Fortress v7 Utility Small Storage Unit Device Seismic Detector Storage Small Storage Unit Processor Melee Analysis Suite Hackware System Shield Protection Light Armor Plating Weapon Hammer Ballistic Gun Light Assault Rifle Impact Weapon Hammer Build | -11 -10 -9 -9 -9 -8 -8 -7 ------- Run | Yrd Mat Mat Min Exi Min Mat Fac Slots Evolved 6 | . . 2 . . . 2 2 Power . | . . . . . . . . Propulsion 2 | . . . . . . 2 . Utility 2 | . . . . . . . 2 Weapon 2 | . . 2 . . . . . Parts Attached 26 | 7 1 11 . 2 . 2 3 Power 2 | 1 . 1 . . . . . Engine 2 | 1 . 1 . . . . . Core . | . . . . . . . . Reactor . | . . . . . . . . Propulsion 7 | 2 . 4 . . . 1 . Treads 4 | 2 . 2 . . . . . Leg . | . . . . . . . . Wheel 2 | . . 2 . . . . . Hover . | . . . . . . . . Flight 1 | . . . . . . 1 . Utility 8 | 2 . . . 2 . 1 3 Device 1 | 1 . . . . . . . Storage 2 | 1 . . . 1 . . . Processor 2 | . . . . . . . 2 Hackware 1 | . . . . 1 . . . Protection 2 | . . . . . . 1 1 Artifact . | . . . . . . . . Weapon 9 | 2 1 6 . . . . . Energy Gun . | . . . . . . . . Energy Cannon . | . . . . . . . . Ballistic Gun 2 | 2 . . . . . . . Ballistic Cannon . | . . . . . . . . Launcher . | . . . . . . . . Special Weapon . | . . . . . . . . Impact Weapon 7 | . 1 6 . . . . . Slashing Weapon . | . . . . . . . . Piercing Weapon . | . . . . . . . . Special Melee Weapon . | . . . . . . . . Unidentified Prototypes . | . . . . . . . . Corrupted Parts 1 | . . 1 . . . . . System Corruption 5 | . . 5 . . . . . Parts Lost 7 | . . 6 . . . 1 . Power 2 | . . 2 . . . . . Propulsion 3 | . . 3 . . . . . Utility 1 | . . 1 . . . . . Weapon 1 | . . . . . . 1 . Highest Loss Streak 4 | . . 4 . . . 1 . To Critical Strikes . | . . . . . . . . Average Backups 6 | . 4 5 7 6 5 7 9 Power . | . . . . . . . . Propulsion . | . . . . . 1 . . Utility 4 | . . 2 4 3 2 6 9 Weapon 1 | . 4 2 3 2 2 . . Tool/Special . | . . . . . . . . Unused Backups 11 | . . . . 1 . . 10 Power . | . . . . . . . . Propulsion . | . . . . . . . . Utility 11 | . . . . 1 . . 10 Weapon . | . . . . . . . . Tool/Special . | . . . . . . . . Average Slot Usage (%) 76 | . 87 84 77 82 88 62 67 Engine 3 | . 14 5 . . . . . Treads 8 | . 28 14 . . . . . Wheel 3 | . . 2 22 22 22 . . Flight 3 | . . . . . . 8 7 Device 3 | . 14 6 . . . . . Storage 10 | . 14 11 11 11 11 9 7 Processor 1 | . . . . . . . 13 Hackware 1 | . . . . 5 11 1 . Protection 3 | . . . . . . 7 7 Impact Weapon 34 | . 11 43 44 44 44 35 30 Peak Build Rating 47 | 7 7 11 9 15 15 41 47 Average Rating 21 | 5 6 8 9 12 15 40 46 On Entrance 12 | . 7 6 9 9 15 15 41 Avg Prop Armor Cover (%) . | . . . . . . . . Naked Turns . | . . . . . . . . Heaviest Build 22 | 14 14 19 14 19 19 22 22 Greatest Support 50 | 40 40 40 20 20 20 50 50 Greatest Overweight (x) 4 | . . 4 . . . . . Average Overweight (x) . | . . . . . . . . Largest Inventory Capacity 10 | 8 8 8 8 10 10 10 10 Average Capacity 8 | 7 8 8 8 8 10 10 10 Most Carried 10 | . 6 8 7 8 8 10 10 Average Carried 6 | . 4 5 7 7 8 7 9 Final Capacity 10 | 8 8 8 8 10 10 10 10 Final Carried 10 | . 5 7 7 8 8 10 10 Class Distribution -------------------- 79% | Mutant 10% | Gladiator 10% | Scavenger-Mutant Dominant Class ---------------- Mutant | -10/Materials Mutant | -9/Materials Mutant | -9/Mines Mutant | -9/Exiles Mutant | -8/Mines Mutant | -8/Materials Gladiator | -7/Factory Resources | -11 -10 -9 -9 -9 -8 -8 -7 ----------- Run | Yrd Mat Mat Min Exi Min Mat Fac Matter Collected 550 | 302 10 123 . . . 75 40 Remotely . | . . . . . . . . Salvage Created 1327 | 166 49 630 . . . 161 321 Parts 49 | 10 2 23 . . . 5 9 Haulers Intercepted 2 | . . . . . . . 2 Recyclers Shooed 2 | . . 1 . . . . 1 Parts Field Recycled . | . . . . . . . . Retrieved Matter . | . . . . . . . . Parts Self-Destructed . | . . . . . . . . Prevented . | . . . . . . . . Parts Restored . | . . . . . . . . Kills | -11 -10 -9 -9 -9 -8 -8 -7 ------- Run | Yrd Mat Mat Min Exi Min Mat Fac Combat Hostiles Destroyed 19 | . . 13 . . . 2 4 Melee 12 | . . 10 . . . . 2 Classes Destroyed 10 | 2 2 4 . . . . 2 Worker 7 | . 1 3 . . . 1 2 Builder 6 | . . 3 . . . 2 1 Tunneler 4 | 3 . 1 . . . . . Hauler 2 | . . . . . . . 2 Recycler 3 | 1 . 2 . . . . . Watcher 2 | . 1 1 . . . . . Swarmer 6 | . . 6 . . . . . Grunt 8 | . . 5 . . . . 3 Sentry 4 | . . 2 . . . 2 . Hunter 1 | . . . . . . . 1 Best Kill Streak 7 | 4 1 7 . . . 2 5 Combat Bots Only 6 | . . 6 . . . 1 2 Max Kills in Single Turn 1 | 1 1 1 . . . 1 1 Gunslinging . | . . . . . . . . Exploded . | . . . . . . . . Melee 1 | . . 1 . . . . 1 Uniques/NPCs Destroyed . | . . . . . . . . Combat | -11 -10 -9 -9 -9 -8 -8 -7 -------- Run | Yrd Mat Mat Min Exi Min Mat Fac Hostile Shots Fired 168 | . . 132 9 . . 19 8 Missed 46 | . . 27 2 . . 13 4 Hits 122 | . . 105 7 . . 6 4 Projectile 122 | . . 105 7 . . 6 4 Damage Taken 1750 | . . 1242 86 . . 355 67 Core 346 | . . 228 . . . 82 36 Absorbed by Shields . | . . . . . . . . Regen/Repaired (Parts) 45 | . . . . . . 45 . Core Remaining (%) 82 | 100 100 . . . 43 85 . Volleys Fired 8 | 8 . . . . . . . Largest 2 | 2 . . . . . . . Hottest 40 | 40 . . . . . . . Shots Fired 16 | 16 . . . . . . . Gun 16 | 16 . . . . . . . Cannon . | . . . . . . . . Launcher . | . . . . . . . . Special . | . . . . . . . . Kinetic 16 | 16 . . . . . . . Thermal . | . . . . . . . . Explosive . | . . . . . . . . Electromagnetic . | . . . . . . . . Robot Hit Streak 11 | 11 . . . . . . . Robot Miss Streak 2 | 2 . . . . . . . Penetration Max . | . . . . . . . . Secondary Targets . | . . . . . . . . Shots Hit Robots 88 | 12 3 49 . . 3 5 16 Core Hits 20 | 7 1 10 . . . . 2 Critical Kills 6 | . . 6 . . . . . Critical Parts Destroyed 15 | . . 7 . . . 4 4 Critical Strikes 22 | . . 14 . . . 4 4 Smash 22 | . . 14 . . . 4 4 Melee Attacks 171 | . 14 93 . . 4 33 27 Impact 171 | . 14 93 . . 4 33 27 Slashing . | . . . . . . . . Piercing . | . . . . . . . . Sneak Attacks 25 | . 2 10 . . 2 3 8 Combat Hostiles . | . . . . . . . . Follow-up Attacks 19 | . . 16 . . 1 . 2 Damage Inflicted 3527 | 115 109 1951 . . 97 290 965 Guns 115 | 115 . . . . . . . Cannons . | . . . . . . . . Explosions . | . . . . . . . . Melee 3412 | . 109 1951 . . 97 290 965 Ramming . | . . . . . . . . Kinetic 115 | 115 . . . . . . . Thermal . | . . . . . . . . Explosive . | . . . . . . . . Electromagnetic . | . . . . . . . . Impact 3412 | . 109 1951 . . 97 290 965 Slashing . | . . . . . . . . Piercing . | . . . . . . . . Highest Corruption 5 | . . 5 5 5 5 3 . Average Corruption 3 | . . 5 5 5 5 3 . Corruption Purged . | . . . . . . . . Corruption Blocked . | . . . . . . . . Effects 11 | . . 1 . 2 1 7 . Message Errors 1 | . . . . . . 1 . Matter Fused 2 | . . . . . 1 1 . Heat Flow Errors 5 | . . 1 . 1 . 3 . Energy Discharges 2 | . . . . 1 . 1 . Data Loss (minor) 1 | . . . . . . 1 . Overload Shots . | . . . . . . . . Overflow Damage 1424 | . 12 664 . . 2 275 471 Projectiles . | . . . . . . . . Explosions . | . . . . . . . . Melee 1424 | . 12 664 . . 2 275 471 Knockbacks 17 | . . 6 . . . 2 9 Impact 15 | . . 6 . . . 2 7 Kinetic . | . . . . . . . . Secondary 2 | . . . . . . . 2 Self-Inflicted Damage . | . . . . . . . . Shots . | . . . . . . . . Rammed . | . . . . . . . . Targets Rammed . | . . . . . . . . Kicked . | . . . . . . . . Crushed . | . . . . . . . . Highest Temperature 259 | . . 254 . 259 . 232 . Average Temperature 115 | . . 128 . 133 . 106 . Received Heat Transfer 507 | . . 396 48 . . 27 36 Siege Activations . | . . . . . . . . Martial Activations . | . . . . . . . . Shielding Activations . | . . . . . . . . Robots Disrupted . | . . . . . . . . Combat Hostiles . | . . . . . . . . Robots Corrupted 15 | . . 6 . . . 4 5 Combat Hostiles 7 | . . 3 . . . 2 2 Parts Fried 30 | . . 17 . . . 4 9 Impact Corruptions 50 | . 1 26 . . 1 8 14 Robots Melted . | . . . . . . . . Combat Hostiles . | . . . . . . . . Parts Melted . | . . . . . . . . Heat Transferred . | . . . . . . . . Parts Sabotaged . | . . . . . . . . Parts Stolen . | . . . . . . . . Parts Stripped . | . . . . . . . . Power Chain Reactions . | . . . . . . . . Alert | -11 -10 -9 -9 -9 -8 -8 -7 ------- Run | Yrd Mat Mat Min Exi Min Mat Fac Maximum Alert Level . | . . . . . . . . Low Security (%) 100 | 100 100 100 100 . 100 100 100 Level 1 . | . . . . . . . . Level 2 . | . . . . . . . . Level 3 . | . . . . . . . . Level 4 . | . . . . . . . . Level 5 . | . . . . . . . . High Security . | . . . . . . . . Max Security . | . . . . . . . . Peak Influence 158 | 20 32 158 54 . . 58 75 Initial 54 | . . 10 54 . . . . Average 40 | 3 8 98 54 . . 15 19 Influence Increases 925 | 20 108 452 . . . 209 136 Destroy 0b10 Robot/C 380 | . . 260 . . . 40 80 Destroy 0b10 Robot/NC 120 | 20 10 50 . . . 15 25 Destroy Leader 98 | . 2 62 . . . 20 14 Successful Hack 43 | . . . . . . 43 . Select Force Hacks 30 | . 30 . . . . . . Disable Machine 135 | . 60 60 . . . . 15 Destroy Structure 29 | . 6 5 . . . 16 2 Lose Combat Pursuer 90 | . . 15 . . . 75 . Influence Decreases 853 | 20 83 338 85 54 . 209 64 Entered New Map 154 | . . 15 85 54 . . . Time Decay 629 | 20 83 263 . . . 199 64 Lost Part 70 | . . 60 . . . 10 . Squads Dispatched 6 | . 1 2 . . . 1 2 Investigation 4 | . 1 1 . . . 1 1 Extermination . | . . . . . . . . Reinforcement 2 | . . 1 . . . . 1 Assault . | . . . . . . . . Garrison . | . . . . . . . . Intercept . | . . . . . . . . Searches Triggered . | . . . . . . . . Construction Impeded 1 | . . . . . . . 1 Haulers Reinforced . | . . . . . . . . Active Scanning Responses . | . . . . . . . . Cargo Convoy Interrupts . | . . . . . . . . Stealth | -11 -10 -9 -9 -9 -8 -8 -7 --------- Run | Yrd Mat Mat Min Exi Min Mat Fac Distress Signals 7 | . . 4 . . . 3 . Communications Jammed . | . . . . . . . . Distress Signals . | . . . . . . . . Times Spotted 49 | . 4 26 3 . . 13 3 Peak Tracking Total 7 | . 1 7 3 . . 5 2 Tactical Retreats 4 | . . 1 . . . 3 . Traps | -11 -10 -9 -9 -9 -8 -8 -7 ------- Run | Yrd Mat Mat Min Exi Min Mat Fac Traps Triggered 1 | . . 1 . . . . . Indirectly . | . . . . . . . . Trap Hack Attempts . | . . . . . . . . Triggered . | . . . . . . . . Disarmed . | . . . . . . . . Reprogrammed . | . . . . . . . . Reused . | . . . . . . . . Traps Extracted . | . . . . . . . . Installed . | . . . . . . . . Triggered . | . . . . . . . . Machines | -11 -10 -9 -9 -9 -8 -8 -7 ---------- Run | Yrd Mat Mat Min Exi Min Mat Fac Machines Disabled 9 | . 4 4 . . . . 1 Max in Single Turn 1 | . 1 1 . . . . 1 Machines Repaired . | . . . . . . . . Machines Dismantled . | . . . . . . . . Machines Sabotaged . | . . . . . . . . Overloaded Fab Kills . | . . . . . . . . Hacking | -11 -10 -9 -9 -9 -8 -8 -7 --------- Run | Yrd Mat Mat Min Exi Min Mat Fac Machines Accessed 11 | . 1 . . 1 . 8 1 Terminals 7 | . . . . . . 6 1 Fabricators . | . . . . . . . . Repair Stations 1 | . . . . . . 1 . Recycling Units 1 | . 1 . . . . . . Scanalyzers 1 | . . . . . . 1 . Garrison Access . | . . . . . . . . Total Hacks 32 | . 1 . . 1 . 27 3 Successful 20 | . 1 . . 1 . 18 . Failed 12 | . . . . . . 9 3 Catastrophic 1 | . . . . . . 1 . Database Lockouts . | . . . . . . . . Manual 30 | . 1 . . 1 . 22 6 Terminals 25 | . . . . . . 22 3 Fabricators . | . . . . . . . . Repair Stations 2 | . . . . . . 2 . Recycling Units 1 | . 1 . . . . . . Scanalyzers 3 | . . . . . . 3 . Garrison Access . | . . . . . . . . Terminal Hacks 4 | . . . . 1 . 3 . Terminal Index 1 | . . . . . . 1 . Registered Components 1 | . . . . . . 1 . Zone Layout 1 | . . . . . . 1 . Proto ID Catalog 1 | . . . . 1 . . . Fabricator Hacks . | . . . . . . . . Repair Station Hacks 2 | . . . . . . 2 . Scan Component 1 | . . . . . . 1 . Repair 1 | . . . . . . 1 . Recycling Unit Hacks . | . . . . . . . . Scanalyzer 2 | . . . . . . 2 . Retrieve Study 2 | . . . . . . 2 . Garrison Access Hacks . | . . . . . . . . Unauthorized Hacks 12 | . 1 . . . . 11 . Terminals 11 | . . . . . . 11 . Botnet 5 | . . . . . . 5 . Skim 6 | . . . . . . 6 . Fabricators . | . . . . . . . . Repair Stations . | . . . . . . . . Recycling Units 1 | . 1 . . . . . . Tunnel 1 | . 1 . . . . . . Scanalyzers . | . . . . . . . . Garrison Access . | . . . . . . . . Data Cores Recovered . | . . . . . . . . Used . | . . . . . . . . Hacking Detections 9 | . . . . . . 7 2 Full Trace Events 2 | . . . . . . 1 1 Feedback Events . | . . . . . . . . Feedback Blocked . | . . . . . . . . Robot Schematics Acquired . | . . . . . . . . Robots Built . | . . . . . . . . Authchips . | . . . . . . . . Time . | . . . . . . . . Total Robot Build Rating . | . . . . . . . . Part Schematics Acquired . | . . . . . . . . Parts Built . | . . . . . . . . Authchips . | . . . . . . . . Time . | . . . . . . . . Total Part Build Rating . | . . . . . . . . Part Studies Acquired 2 | . . . . . . 2 . Parts Repaired 1 | . . . . . . 1 . Time 32 | . . . . . . 32 . Parts Recycled . | . . . . . . . . Recycled Matter . | . . . . . . . . Retrieved Matter . | . . . . . . . . Retrieved Components . | . . . . . . . . Parts Scanalyzed . | . . . . . . . . Part Schematics Acquired . | . . . . . . . . Parts Damaged . | . . . . . . . . Bothacking | -11 -10 -9 -9 -9 -8 -8 -7 ------------ Run | Yrd Mat Mat Min Exi Min Mat Fac Used RIF Installer . | . . . . . . . . Robots Hacked . | . . . . . . . . Non-combat . | . . . . . . . . Combat . | . . . . . . . . Robot Hacks Applied . | . . . . . . . . Relay Couplers Released . | . . . . . . . . Fabnet Peak Effective % . | . . . . . . . . Robots Rewired . | . . . . . . . . Allies Hacked . | . . . . . . . . Hacks Repelled . | . . . . . . . . Allies | -11 -10 -9 -9 -9 -8 -8 -7 -------- Run | Yrd Mat Mat Min Exi Min Mat Fac Total Allies . | . . . . . . . . Largest Group . | . . . . . . . . Highest-Rated Group . | . . . . . . . . Highest-Rated Ally . | . . . . . . . . Total Orders . | . . . . . . . . Ally Attacks . | . . . . . . . . Total Damage . | . . . . . . . . Kills . | . . . . . . . . Allies Corrupted . | . . . . . . . . Allies Melted . | . . . . . . . . Intel | -11 -10 -9 -9 -9 -8 -8 -7 ------- Run | Yrd Mat Mat Min Exi Min Mat Fac Active Infowar (turns) 655 | 30 279 346 . . . . . Seismic 655 | 30 279 346 . . . . . Robot Analysis Total . | . . . . . . . . Derelict Logs Recovered . | . . . . . . . . Drone Launches . | . . . . . . . . Drone Recoveries . | . . . . . . . . Exploration | -11 -10 -9 -9 -9 -8 -8 -7 ------------- Run | Yrd Mat Mat Min Exi Min Mat Fac Turns Passed 2089 | 115 279 614 12 193 48 613 215 Spaces Moved 1522 | 59 146 292 15 235 50 425 300 Core 17 | 10 . 7 . . . . . Treads 378 | 49 146 183 . . . . . Legs . | . . . . . . . . Wheels 402 | . . 102 15 235 50 . . Hover . | . . . . . . . . Flight 725 | . . . . . . 425 300 Fastest Speed 50 | 50 160 80 80 80 80 50 50 Average Speed 86 | 141 160 137 80 80 80 50 50 Slowest Speed 250 | 160 160 250 80 80 80 50 50 Overloaded Moves . | . . . . . . . . Propulsion Burnouts . | . . . . . . . . Robots Hopped . | . . . . . . . . Potential Cave-ins . | . . . . . . . . Cave-ins Triggered 1 | . . . . . . 1 . Exploration Rate (%) 24 | 3 29 27 9 60 20 36 10 Regions Visited 7 Branch Regions 3 Pre-discovered Areas 2 | . 1 . . . . 1 . Known Exits Taken 1 | . . . . . . 1 . Unknown Exits Taken 6 | 1 1 1 1 1 1 . . Scrap Searched . | . . . . . . . . Spaces Dug 30 | . 6 5 . . . 17 2 Terrain Destroyed 30 | . 6 5 . . . 17 2 Melee 30 | . 6 5 . . . 17 2 Projectile . | . . . . . . . . AOE . | . . . . . . . . Terrain Rammed . | . . . . . . . . Walls Destroyed . | . . . . . . . . Machines Disabled . | . . . . . . . . Actions | -11 -10 -9 -9 -9 -8 -8 -7 --------- Run | Yrd Mat Mat Min Exi Min Mat Fac Total 2022 | 73 168 372 14 241 52 776 326 Wait 309 | . . 1 . . . 308 . Move 1515 | 58 145 291 14 234 49 424 300 Hop . | . . . . . . . . Pick Up 26 | . 6 4 . 1 . 11 4 Fast Attach 15 | 7 . 7 . . . 1 . Attach 13 | . 1 4 . 2 . 3 3 Detach . | . . . . . . . . Swap 5 | . . 4 . 1 . . . Drop 14 | . 2 1 . 3 . 6 2 Fire 8 | 8 . . . . . . . Melee 117 | . 14 60 . . 3 23 17 Ram . | . . . . . . . . Kick . | . . . . . . . . Crush . | . . . . . . . . Escape Stasis . | . . . . . . . . Rewire . | . . . . . . . . Trap . | . . . . . . . . Miscellaneous . | . . . . . . . . Route ------- -11/Scrapyard -10/Materials -9/Materials -9/Mines -9/Exiles -8/Mines -8/Materials (discovered 3 exits: *Fac x3) -7/Factory (discovered 3 exits: Fac / Sto / Low) History --------- Turn | Location | Event 4 | -11/Scrapyard | Discovered new exit (range 15) 116 | -11/Scrapyard | Entered Materials 311 | -10/Materials | Build established: Mutant 355 | -10/Materials | Discovered new exit (range 8) 395 | -10/Materials | Entered another Materials area 395 | -9/Materials | Evolved 2 slots: Weapon x2 752 | -9/Materials | Core integrity fell below 50% 772 | -9/Materials | Lost 4 parts (1p2n1u) 938 | -9/Materials | Discovered new exit (range 15) 1009 | -9/Materials | Entered Mines 1018 | -9/Mines | Deemed a non-threat by the Exiles lab entrance 1018 | -9/Mines | Discovered new exit (range 5) 1021 | -9/Mines | Entered Exiles 1042 | -9/Exiles | Met 8R-AWN 1054 | -9/Exiles | Met EX-HEX 1077 | -9/Exiles | Met EX-BIN 1086 | -9/Exiles | Aligned with FarCom system 1087 | -9/Exiles | Given EX-Vault access code 1106 | -9/Exiles | Opened EX-Vault 1117 | -9/Exiles | Found Flying Fortress v7 1133 | -9/Exiles | Warned to stay clear of 0b10 Research branches 1156 | -9/Exiles | Met EX-DEC 1205 | -9/Exiles | Discovered new exit (range 12) 1214 | -9/Exiles | Left Exiles lab with Flying Fortress v7 1214 | -9/Exiles | Entered Mines 1256 | -8/Mines | Discovered new exit (range 8) 1262 | -8/Mines | Entered Materials 1262 | -8/Materials | Evolved 2 slots: Propulsion x2 1311 | -8/Materials | Repaired Maul 1348 | -8/Materials | Crushed by falling debris 1535 | -8/Materials | Discovered new exit (range 10) 1621 | -8/Materials | Learned 4 Lower Caves zone layouts 1678 | -8/Materials | Learned location of 3 exits from Factory 1725 | -8/Materials | Learned 2 Storage zone layouts 1763 | -8/Materials | Learned location of 1 exit from Lower Caves 1789 | -8/Materials | Identified exit to Factory 1875 | -8/Materials | Entered Factory 1875 | -7/Factory | Evolved 2 slots: Utility x2 1876 | -7/Factory | Identified exit to Factory 1876 | -7/Factory | Identified exit to Lower Caves 1876 | -7/Factory | Identified exit to Storage 2090 | -7/Factory | Self-destructed Last Messages --------------- 02045_ G-47 Trooper knocked back. 02056_ Connecting with DSF Access... 02056_ DSF Access disabled. 02071_ G-47 Trooper suffers critical hit (Smash). 02071_ Destroyed Unknown Leg. 02071_ Destroyed Lgt. Nuclear Core. 02071_ G-47 Trooper system corrupted by crushing effect. 02071_ Hammer+ follow-up attack on G-47 Trooper. 02072_ G-47 Trooper system terminally corrupted. 02072_ Particle Gun fried. 02072_ Unknown Leg fried. 02080_ Sneak attack on A-02 Transporter. 02080_ Destroyed Weight Redist. System. 02080_ A-02 Transporter system corrupted by crushing effect. 02080_ Ion Engine fried. 02080_ Lgt. Treads fried. 02080_ A-02 Transporter destroyed. Map ----- +----------------------------------------------------+ | ???????"" """ """ """ # # | | ???????????"" """ """ # # | | ??????????""" """ """ # # | | ??????? # # | | ????????" """ """ """ # # | | ???????"" """ """ """ # # | | ????? """ """ """ """ ##"########## | | ???? ####????????? | | ????? #???????????? | | ?????????##### #???????????? | | ?????????????# #???????????? | | ????????????## #???????????? | | ????????????# #???????????? | | ????????????# #???????????? | | ????????????## +???????????? | | ???########### #???????????? | | ???# !# #???????????? | | ???#! # #???????????? | | ???# # #???????????? | | ???#/ +% #???????????? | | ???# # ] #???????????? | | ???# # ][] #???????????? | | ???# # [%]! #???????????? | | ???# ] #########+#######????????? | | ???###########??# ! #????????? | | ????????????????# @"""#????????? | | ????????????????# """ """#????????? | | ????????????????# """ "#????????? | | ????????????????# """ "F"#????????? | | ????????????????# """#????????? | | ????????????????# """ #????????? | | ????????????????#! """ #????????? | | ????????????????# """ #????????? | | ????????????????#?? [#????????? | | ????????????????????? #????????? | | ????????????????????? #????????? | | ?????????????????????#########????????? | | ??????????????????????????????????????? | | ??????????????????????????????????????? | | ??????????????????????????????????????? | | ??????????????????????????????????????? | | ??????????????????????????????????????? | | ??????????????????????????????????????? | | ??????????????????????????????????????? | | ??????????????????????????????????????? | | ??????????????????????????????????????? | | ??????????????????????????????????????? | | ??????????????????????????????????????? | | ??????????????????????????????????????? | | ??????????????????????????????????????? | +----------------------------------------------------+ Best States ------------- Heat Dissipation 34 Energy Generation 10 Energy Capacity 250 Matter Stores 300 Matter Capacity 300 Sight Range 16 Terrain Scan Density 10 Armor Coverage 150 Evasion (%) 60 Melee Accuracy 10 Recoil Reduction 2 Defensive Hacking 10 Item Schematics ----------------- None Robot Schematics ------------------ None Fabricated ------------ Nothing Repaired ---------- Maul | 62% | -8/Materials Studied --------- Maul | -8/Materials | Hacked Hammer | -8/Materials | Hacked Alien Tech Used ----------------- None Achievements -------------- None Challenges ------------ None Game ------ Seed ThiefAntimatterReplicator Manual? 0 Play Time 00:17:35 Cumulative 28.4 hours Start 2025.11.02 @ 16:15:21 End 2025.11.02 @ 16:33:27 Sessions 1 Manual Loads 0 Difficulty Rogue Special Mode None Game No. 59 Rogue 59 Adventurer 0 Explorer 0 Win Type - Total 2 Types 2/0/0/0/0/0/0/0/0/0 Lore% 38 Gallery% 30 Achievement% 29 Wizard Run 0 Options --------- Layout 1 ASCII 0 Keyboard 1 Movement Arrows Keybinds 0 Fullscreen 1 Font 16/SmallcapsGlow Map View 25x27 Zoom Use 14% Tactical HUD 1 Map Filters NONE Filters NONE Steam 1 RUN: 75da5315-8d12-485d-b94e-ed5ab8414fda